Cogmind - Beta 13 @@@ ROGUE MODE // 2024.04.03 @ 16:44:05 Player: Devilhunter10 Result: Destroyed by QV-BJH(R) with Subdweller Beam Cannon Performance ------------- Evolutions (0) 0 Regions Visited (2) 400 Robots Destroyed (18) 90 Value Destroyed (489) 489 Prototype IDs (0) 0 Alien Tech Used (0) 0 Bonus (0) 0 TOTAL SCORE: 979 Bonus ------- None Cogmind --------- Core Integrity 0/250 Matter 248/300 Energy 100/100 System Corruption 0% Temperature Warm (173) Movement Core (50) Location -10/Subcaves Parts ------- > --- POWER (1) -------- (None) > --- PROPULSION (2) --- (None) > --- UTILITY (2) ------ (None) > --- WEAPON (2) ------- Light Cannon > --- INVENTORY (5) ---- Improved Heat Sink High-capacity Matter Pod (200) Peak State ------------ > --- POWER ------------ Ion Engine > --- PROPULSION ------- Aluminum Leg Aluminum Leg > --- UTILITY ---------- Small Storage Unit Targeting Computer > --- WEAPON ----------- Assault Rifle Light Assault Rifle > --- INVENTORY -------- Ion Engine Ion Engine Aluminum Leg Heat Sink Improved Heat Sink Large Matter Pod High-capacity Matter Pod Light Assault Rifle [Rating: 8] Favorites ----------- Power Ion Engine Engine Ion Engine Propulsion Aluminum Leg Leg Aluminum Leg Utility Small Storage Unit Storage Small Storage Unit Processor Targeting Computer Protection Scrap Shield Weapon EM Pulse Gun Energy Gun EM Pulse Gun Ballistic Gun Assault Rifle Ballistic Cannon Light Cannon Build | -11 -10 -10 ------- Run | Yrd Mat Sub Slots Evolved . | . . . Power . | . . . Propulsion . | . . . Utility . | . . . Weapon . | . . . Parts Attached 21 | 6 11 4 Power 3 | 1 1 1 Engine 3 | 1 1 1 Core . | . . . Reactor . | . . . Propulsion 6 | 2 3 1 Treads . | . . . Leg 6 | 2 3 1 Wheel . | . . . Hover . | . . . Flight . | . . . Utility 3 | 1 1 1 Device . | . . . Storage 1 | 1 . . Processor 1 | . 1 . Hackware . | . . . Protection 1 | . . 1 Artifact . | . . . Weapon 9 | 2 6 1 Energy Gun 2 | 2 . . Energy Cannon . | . . . Ballistic Gun 2 | . 2 . Ballistic Cannon 5 | . 4 1 Launcher . | . . . Special Weapon . | . . . Impact Weapon . | . . . Slashing Weapon . | . . . Piercing Weapon . | . . . Special Melee Weapon . | . . . Unidentified Prototypes . | . . . Parts Lost 12 | . 4 8 Power 3 | . 1 2 Propulsion 5 | . 2 3 Utility 1 | . . 1 Weapon 3 | . 1 2 Highest Loss Streak 8 | . 1 8 To Critical Strikes . | . . . Average Slot Usage (%) 93 | . 93 88 Engine 13 | . 13 14 Leg 26 | . 26 23 Storage 13 | . 14 12 Processor 11 | . 11 11 Energy Gun 8 | . 10 . Ballistic Gun 11 | . 13 . Ballistic Cannon 6 | . 3 25 Naked Turns . | . . . Heaviest Build 16 | 14 16 16 Greatest Support 20 | 20 20 20 Greatest Overweight (x) 1 | 1 1 . Average Overweight (x) . | . . . Largest Inventory Capacity 8 | 8 8 8 Average Capacity 7 | 7 8 7 Most Carried 8 | 8 8 8 Average Carried 6 | 3 6 7 Final Capacity 8 | 8 8 5 Final Carried 8 | 4 8 2 Class Distribution -------------------- 100% | Mutant Dominant Class ---------------- Mutant | -10/Materials Mutant | -10/Subcaves Resources | -11 -10 -10 ----------- Run | Yrd Mat Sub Matter Collected 780 | 212 560 8 Remotely . | . . . Salvage Created 681 | . 646 35 Parts 33 | . 32 1 Haulers Intercepted 1 | . 1 . Recyclers Shooed . | . . . Parts Field Recycled . | . . . Retrieved Matter . | . . . Parts Self-Destructed . | . . . Prevented . | . . . Kills | -11 -10 -10 ------- Run | Yrd Mat Sub Combat Hostiles Destroyed 15 | . 14 1 Guns 12 | . 12 . Cannons 1 | . . 1 AOE 2 | . 2 . Classes Destroyed 6 | . 5 1 Worker 1 | . 1 . Hauler 1 | . 1 . Operator 1 | . 1 . Swarmer 3 | . 3 . Grunt 11 | . 11 . Subdweller 1 | . . 1 Best Kill Streak 7 | . 7 1 Combat Bots Only 5 | . 5 1 Max Kills in Single Turn 2 | . 2 1 Gunslinging . | . . . Exploded 2 | . 2 . Melee . | . . . Uniques/NPCs Destroyed . | . . . Combat | -11 -10 -10 -------- Run | Yrd Mat Sub Hostile Shots Fired 120 | . 64 56 Missed 20 | . 12 8 Damage Taken 1693 | . 605 1088 Core 258 | . 93 165 Absorbed by Shields . | . . . Core Remaining (%) 100 | 100 . . Volleys Fired 53 | . 43 10 Largest 2 | . 2 2 Hottest 80 | . 80 70 Shots Fired 92 | . 77 15 Gun 77 | . 77 . Cannon 15 | . . 15 Launcher . | . . . Special . | . . . Kinetic 51 | . 36 15 Thermal . | . . . Explosive . | . . . Electromagnetic 41 | . 41 . Robot Hit Streak 14 | . 14 12 Robot Miss Streak 5 | . 5 1 Penetration Max . | . . . Secondary Targets 2 | . 2 . Max Gunslinging Chain 1 | . 1 . Shots Hit Robots 63 | . 50 13 Core Hits 29 | . 27 2 Critical Kills . | . . . Critical Parts Destroyed . | . . . Critical Strikes 1 | . . 1 Blast 1 | . . 1 Melee Attacks . | . . . Impact . | . . . Slashing . | . . . Piercing . | . . . Sneak Attacks . | . . . Combat Hostiles . | . . . Follow-up Attacks . | . . . Damage Inflicted 922 | . 698 224 Guns 625 | . 625 . Cannons 224 | . . 224 Explosions 73 | . 73 . Melee . | . . . Ramming . | . . . Kinetic 473 | . 249 224 Thermal 73 | . 73 . Explosive . | . . . Electromagnetic 376 | . 376 . Impact . | . . . Slashing . | . . . Piercing . | . . . Highest Corruption . | . . . Average Corruption . | . . . Corruption Purged . | . . . Corruption Blocked . | . . . Overload Shots . | . . . Overflow Damage . | . . . Projectiles . | . . . Explosions . | . . . Melee . | . . . Knockbacks . | . . . Impact . | . . . Kinetic . | . . . Secondary . | . . . Self-Inflicted Damage 24 | . 24 . Shots 1 | . 1 . Rammed . | . . . Targets Rammed . | . . . Kicked . | . . . Crushed . | . . . Highest Temperature 265 | . 114 265 Average Temperature 51 | . 31 212 Received Heat Transfer 887 | . 270 617 Siege Activations . | . . . Robots Corrupted . | . . . Combat Hostiles . | . . . Parts Fried 2 | . 2 . Impact Corruptions . | . . . Robots Melted . | . . . Combat Hostiles . | . . . Parts Melted . | . . . Heat Transferred 100 | . 100 . Parts Sabotaged . | . . . Parts Stolen . | . . . Parts Stripped . | . . . Power Chain Reactions 1 | . 1 . Alert | -11 -10 -10 ------- Run | Yrd Mat Sub Peak Influence 263 | . 263 . Initial . | . . . Average 101 | . 112 . Maximum Alert Level 1 | . 1 . Low Security (%) 80 | 100 78 . Level 1 19 | . 21 . Level 2 . | . . . Level 3 . | . . . Level 4 . | . . . Level 5 . | . . . High Security . | . . . Max Security . | . . . Squads Dispatched 4 | . 4 . Investigation 1 | . 1 . Extermination . | . . . Reinforcement 3 | . 3 . Assault . | . . . Garrison . | . . . Intercept . | . . . Searches Triggered . | . . . Construction Impeded . | . . . Haulers Reinforced . | . . . Active Scanning Responses . | . . . Cargo Convoy Interrupts . | . . . Stealth | -11 -10 -10 --------- Run | Yrd Mat Sub Distress Signals 1 | . 1 . Communications Jammed . | . . . Distress Signals . | . . . Times Spotted 27 | . 18 9 Peak Tracking Total 6 | . 4 6 Tactical Retreats 1 | . 1 . Traps | -11 -10 -10 ------- Run | Yrd Mat Sub Traps Triggered 1 | . 1 . Indirectly . | . . . Trap Hack Attempts . | . . . Triggered . | . . . Disarmed . | . . . Reprogrammed . | . . . Reused . | . . . Traps Extracted . | . . . Installed . | . . . Triggered . | . . . Machines | -11 -10 -10 ---------- Run | Yrd Mat Sub Machines Disabled . | . . . Max in Single Turn . | . . . Machines Repaired . | . . . Machines Dismantled . | . . . Machines Sabotaged . | . . . Overloaded Fab Kills . | . . . Hacking | -11 -10 -10 --------- Run | Yrd Mat Sub Machines Accessed 1 | . 1 . Terminals 1 | . 1 . Fabricators . | . . . Repair Stations . | . . . Recycling Units . | . . . Scanalyzers . | . . . Garrison Access . | . . . Total Hacks 2 | . 2 . Successful 1 | . 1 . Failed 1 | . 1 . Catastrophic . | . . . Database Lockouts . | . . . Manual . | . . . Terminals 2 | . 2 . Fabricators . | . . . Repair Stations . | . . . Recycling Units . | . . . Scanalyzers . | . . . Garrison Access . | . . . Terminal Hacks 1 | . 1 . Zone Layout 1 | . 1 . Fabricator Hacks . | . . . Repair Station Hacks . | . . . Recycling Unit Hacks . | . . . Scanalyzer . | . . . Garrison Access Hacks . | . . . Unauthorized Hacks . | . . . Terminals . | . . . Fabricators . | . . . Repair Stations . | . . . Recycling Units . | . . . Scanalyzers . | . . . Garrison Access . | . . . Data Cores Recovered . | . . . Used . | . . . Hacking Detections 1 | . 1 . Full Trace Events . | . . . Feedback Events . | . . . Feedback Blocked . | . . . Robot Schematics Acquired . | . . . Robots Built . | . . . Authchips . | . . . Time . | . . . Total Robot Build Rating . | . . . Part Schematics Acquired . | . . . Parts Built . | . . . Authchips . | . . . Time . | . . . Total Part Build Rating . | . . . Parts Repaired . | . . . Time . | . . . Parts Recycled . | . . . Recycled Matter . | . . . Retrieved Matter . | . . . Retrieved Components . | . . . Parts Scanalyzed . | . . . Part Schematics Acquired . | . . . Parts Damaged . | . . . Bothacking | -11 -10 -10 ------------ Run | Yrd Mat Sub Used RIF Installer . | . . . Robots Hacked . | . . . Non-combat . | . . . Combat . | . . . Robot Hacks Applied . | . . . Relay Couplers Released . | . . . Fabnet Peak Effective % . | . . . Robots Rewired . | . . . Allies Hacked . | . . . Hacks Repelled . | . . . Allies | -11 -10 -10 -------- Run | Yrd Mat Sub Total Allies . | . . . Largest Group . | . . . Highest-Rated Group . | . . . Highest-Rated Ally . | . . . Total Orders . | . . . Ally Attacks . | . . . Total Damage . | . . . Kills . | . . . Allies Corrupted . | . . . Allies Melted . | . . . Intel | -11 -10 -10 ------- Run | Yrd Mat Sub Robot Analysis Total . | . . . Derelict Logs Recovered . | . . . Drone Launches . | . . . Drone Recoveries . | . . . Exploration | -11 -10 -10 ------------- Run | Yrd Mat Sub Turns Passed 880 | 72 714 94 Spaces Moved 548 | 51 447 50 Core 18 | 18 . . Treads . | . . . Legs 530 | 33 447 50 Wheels . | . . . Hover . | . . . Flight . | . . . Fastest Speed 50 | 50 120 120 Average Speed 122 | 111 123 120 Slowest Speed 190 | 120 190 120 Overloaded Moves . | . . . Propulsion Burnouts . | . . . Robots Hopped . | . . . Cave-ins Triggered . | . . . Exploration Rate (%) 17 | 4 46 2 Regions Visited 2 Branch Regions 1 Pre-discovered Areas . | . . . Known Exits Taken . | . . . Unknown Exits Taken 2 | 1 1 . Scrap Searched . | . . . Spaces Dug . | . . . Terrain Destroyed 5 | . 5 . Melee . | . . . Projectile . | . . . AOE 5 | . 5 . Terrain Rammed . | . . . Walls Destroyed . | . . . Machines Disabled . | . . . Actions | -11 -10 -10 --------- Run | Yrd Mat Sub Total 677 | 65 540 72 Wait 11 | . 8 3 Move 546 | 50 446 50 Hop . | . . . Pick Up 29 | 9 19 1 Fast Attach 3 | 1 2 . Attach 14 | 5 5 4 Detach . | . . . Swap 4 | . 4 . Drop 17 | . 13 4 Fire 53 | . 43 10 Melee . | . . . Ram . | . . . Kick . | . . . Crush . | . . . Escape Stasis . | . . . Rewire . | . . . Trap . | . . . Miscellaneous . | . . . Route ------- -11/Scrapyard -10/Materials (discovered 2 exits: [*Mat] / [*Sub]) -10/Subcaves History --------- Turn | Location | Event 41 | -11/Scrapyard | Discovered new exit (range 15) 73 | -11/Scrapyard | Entered Materials 151 | -10/Materials | Discovered new exit (range 16) 315 | -10/Materials | Build established: Mutant 500 | -10/Materials | Derelicts attacked the area 779 | -10/Materials | Discovered new exit (range 7) 787 | -10/Materials | Entered Subcaves 833 | -10/Subcaves | Ambushed by Subdweller buried in earth 838 | -10/Subcaves | Core integrity fell below 50% 855 | -10/Subcaves | Ambushed by swarm of Subdwellers 855 | -10/Subcaves | Ambushed by Subdwellers from Twisted Machinery 866 | -10/Subcaves | Core integrity fell below 20% 881 | -10/Subcaves | Destroyed by QV-BJH(R) with Subdweller Beam Cannon Last Messages --------------- Machinery. 00862_ DE-JTE(R) emerges from the Twisted Machinery. 00863_ Aluminum Leg destroyed. 00864_ AD-44O(R) emerges from the Twisted Machinery. 00864_ Subatomizers dissect the Sub. Power Source. 00866_ Lgt. Cannon destroyed. 00866_ Ion Engine destroyed. 00867_ 3M-1HI(R) destroyed. 00868_ Lgt. Cannon destroyed. 00868_ Discarded Targeting Computer. 00870_ Dropped Sml. Storage Unit. 00871_ Critical hit (Meltdown: +290). 00871_ 29-2EB(R) affixes Scrap Shield Fragment to Scrap Shield. 00877_ Scrap Shield destroyed. 00878_ Aluminum Leg destroyed. 00880_ Ion Engine destroyed. Map ----- +----------------------------------------------------+ | ?????????????????????????????????????????????????? | | ?????????????????????????????????????????????????? | | ?????????????????????????????????????????????????? | | ?????????????????????????????????????????????????? | | ?????????????????????????????????????????????????? | | ?????????????????????????????????????????????????? | | ?????????????????????????????????????????????????? | | ??????????????????????????#??????????????????????? | | ????????????????????????? ??????????????????????? | | ????????????????????????? ??? ??????????????????? | | ????????????????????????? ##? ???????????????????? | | ????????????????????????? # ????????????????????? | | ???????????????????????## ?????????????????????? | | ?????????????????????### #??????????????????????? | | ?????????????????????# #???????????????????????? | | ??????????????????#### ?##?????????????????????? | | ????????????????## ## # # #?????????????????????? | | ???????????????## ##" # # ##?????????????????????? | | ???????####???## ## ##%&% ##????????????????????? | | ??###?## ##### ## % ##&### ##???????????????????? | | ### ### ## ### ## #### "#???????????????????? | | ########## ######?# ## #??????????????????? | | ### ## #??????? #???????#h#? #??????????????????? | | #?##### #?????###???????##"#%##??????????????????? | | ???????##???????????????#RR"#????????????????????? | | ????????????????????????#@*##????????????????????? | | ????????????????????????#&R#?????????????????????? | | ????????????????????????%%R=#????????????????????? | | ????????????????????????# ]##????????????????????? | | ????????????????????????#!R ?????????????????????? | | ???????????????????????? ?????????????????????? | | ????????????????????????## ????????????????????? | | ??????????????????????????## ????????????????????? | | ???????????????????????????? ^???????????????????? | | ???????????????????????????? ???????????????????? | | ???????????????????????????? #??????????????????? | | ?????????????????????????????##??????????????????? | | ?????????????????????????????????????????????????? | | ?????????????????????????????????????????????????? | | ?????????????????????????????????????????????????? | | ?????????????????????????????????????????????????? | | ?????????????????????????????????????????????????? | | ?????????????????????????????????????????????????? | | ?????????????????????????????????????????????????? | | ?????????????????????????????????????????????????? | | ?????????????????????????????????????????????????? | | ?????????????????????????????????????????????????? | | ?????????????????????????????????????????????????? | | ?????????????????????????????????????????????????? | | ?????????????????????????????????????????????????? | +----------------------------------------------------+ Best States ------------- Heat Dissipation 25 Energy Generation 10 Energy Capacity 250 Matter Stores 300 Matter Capacity 300 Sight Range 16 Terrain Scan Density 10 Evasion (%) 55 Targeting Accuracy 5 Item Schematics ----------------- None Robot Schematics ------------------ None Fabricated ------------ Nothing Alien Tech Used ----------------- None Achievements -------------- None Challenges ------------ None Game ------ Seed SwarmCoordinationBay Manual? 0 Play Time 00:15:18 Cumulative 6.3 hours Start 2024.04.03 @ 09:58:24 End 2024.04.03 @ 16:44:05 Sessions 3 Manual Loads 0 Difficulty Rogue Special Mode None Game No. 13 Rogue 13 Adventurer 0 Explorer 0 Win Type - Total 0 Types 0/0/0/0/0/0/0/0/0 Lore% 13 Gallery% 11 Achievement% 13 Wizard Run 0 Options --------- Layout 1 ASCII 0 Keyboard 0 Movement Numpad Keybinds 0 Fullscreen 1 Font 24/Terminus Map View 50x35 Zoom Use 0% Tactical HUD 1 Map Filters NONE Filters NONE Steam 1 RUN: 9493037a-eab4-4508-9842-a6e135ada7f9